fUST/lending_fUST_20250228
["ID","MTS","AMOUNT","RATE_DAILY","PERIOD"]
[354777049,1740685832488,-416.64596795,0.00049314,31]
[354777050,1740685832498,-500.0,0.00049314,120]
[354777051,1740685832507,-500.0,0.00049314,2]
[354777052,1740685832516,-500.0,0.00049314,120]
[354777053,1740685832525,-500.0,0.00049314,120]
[354777054,1740685832534,-500.0,0.00049314,120]
[354777055,1740685832543,-500.0,0.00049314,120]
[354777056,1740685832552,-500.0,0.00049314,2]
[354777057,1740685832561,-207.62218298,0.00049314,120]
[354777058,1740685832570,-500.0,0.00049314,120]
[354777059,1740685832579,-500.0,0.00049314,120]
[354777060,1740685832589,-500.0,0.00049314,2]
[354777061,1740685832598,-500.0,0.00049314,120]
[354777062,1740685832607,-500.0,0.00049314,120]
[354777063,1740685832617,-500.0,0.00049314,120]
[354777064,1740685832625,-500.0,0.00049314,2]
[354777065,1740685832635,-500.0,0.00049314,120]
[354777066,1740685832643,-500.0,0.00049314,120]
[354777067,1740685832653,-500.0,0.00049314,2]
[354777068,1740685832662,-500.0,0.00049314,120]
[354777069,1740685832672,-500.0,0.00049314,120]
[354777070,1740685832681,-500.0,0.00049314,2]
[354777071,1740685832691,-500.0,0.00049314,120]
[354777072,1740685832700,-450.0,0.00049314,120]
[354777073,1740685832710,-500.0,0.00049314,120]
[354777074,1740685832719,-500.0,0.00049314,2]
[354777075,1740685832728,-329.24088249,0.00049314,120]
[354777076,1740685832737,-385.37036754,0.00049314,2]
[354777077,1740685832747,-500.0,0.00049314,120]
[354777078,1740685832757,-500.0,0.00049314,120]
[354777079,1740685832766,-500.0,0.00049314,2]
[354777080,1740685832775,-500.0,0.00049314,120]
[354777081,1740685832784,-500.0,0.00049314,120]
[354777082,1740685832794,-500.0,0.00049314,120]
[354777083,1740685832803,-500.0,0.00049314,2]
[354777084,1740685832812,-500.0,0.00049314,120]
[354777085,1740685832821,-500.0,0.00049314,120]
[354777086,1740685832832,-500.0,0.00049314,120]
[354777087,1740685832842,-237.65482764,0.00049314,120]
[354777088,1740685832851,-500.0,0.00049314,120]
[354777089,1740685832861,-500.0,0.00049314,2]
[354777090,1740685832870,-500.0,0.00049314,120]
[354777091,1740685832879,-500.0,0.00049314,120]
[354777092,1740685832889,-500.0,0.00049314,120]
[354777093,1740685832899,-500.0,0.00049314,2]
[354777094,1740685832908,-500.0,0.00049314,120]
[354777095,1740685832918,-500.0,0.00049314,2]
[354777096,1740685832927,-500.0,0.00049314,2]
[354777097,1740685832936,-500.0,0.00049314,120]
[354777098,1740685832946,-500.0,0.00049314,120]
[354777099,1740685832955,-500.0,0.00049314,120]
[354777100,1740685832965,-406.46081508,0.00049314,120]
[354777101,1740685832974,-500.0,0.00049314,120]
[354777102,1740685832984,-500.0,0.00049314,2]
[354777103,1740685832993,-500.0,0.00049314,120]
[354777104,1740685833007,-500.0,0.00049314,120]
[354777105,1740685833016,-500.0,0.00049314,120]
[354777106,1740685833025,-500.0,0.00049314,120]
[354777107,1740685833035,-500.0,0.00049314,2]
[354777108,1740685833044,-500.0,0.00049314,120]
[354777109,1740685833054,-500.0,0.00049314,120]
[354777110,1740685833064,-500.0,0.00049314,2]
[354777111,1740685833074,-500.0,0.00049314,120]
[354777112,1740685833084,-500.0,0.00049314,2]
[354777113,1740685833094,-500.0,0.00049314,120]
[354777114,1740685833105,-513.16794243,0.00049314,120]
[354777115,1740685833115,-500.0,0.00049314,120]
[354777116,1740685833126,-500.0,0.00049314,2]
[354777117,1740685833136,-500.0,0.00049314,120]
[354777118,1740685833146,-500.0,0.00049314,2]
[354777119,1740685833156,-500.0,0.00049314,120]
[354777120,1740685833166,-500.0,0.00049314,120]
[354777121,1740685833176,-500.0,0.00049314,120]
[354777122,1740685833185,-500.0,0.00049314,120]
[354777123,1740685833195,-289.64463628,0.00049314,120]
[354777124,1740685833205,-500.0,0.00049314,120]
[354777125,1740685833215,-500.0,0.00049314,2]
[354777126,1740685833225,-500.0,0.00049314,120]
[354777127,1740685833235,-500.0,0.00049314,120]
[354777128,1740685833244,-500.0,0.00049314,120]
[354777129,1740685833257,-500.0,0.00049314,2]
[354777130,1740685833267,-500.0,0.00049314,120]
[354777131,1740685833277,-500.0,0.00049314,2]
[354777132,1740685833287,-500.0,0.00049314,120]
[354777133,1740685833297,-500.0,0.00049314,120]
[354777134,1740685833306,-500.0,0.00049314,120]
[354777135,1740685833316,-500.0,0.00049314,2]
[354777136,1740685833326,-500.0,0.00049314,120]
[354777137,1740685833336,-500.0,0.00049314,120]
[354777138,1740685833346,-500.0,0.00049314,2]
[354777139,1740685833356,-420.95595015,0.00049314,120]
[354777140,1740685833367,-500.0,0.00049314,120]
[354777141,1740685833376,-500.0,0.00049314,2]
[354777142,1740685833386,-500.0,0.00049314,120]
[354777143,1740685833396,-500.0,0.00049314,2]
[354777144,1740685833406,-500.0,0.00049314,120]
[354777145,1740685833416,-500.0,0.00049314,2]
[354777146,1740685833425,-200.0,0.00049314,2]
[354777147,1740685833436,-500.86906289,0.00049315,120]
[354777148,1740685833446,-500.0,0.00049315,120]
[354777149,1740685833455,-500.0,0.00049315,120]
[354777150,1740685833465,-500.0,0.00049315,120]
[354777151,1740685833474,-500.0,0.00049315,120]
[354777152,1740685833483,-553.91684955,0.00049315,120]
[354777153,1740685833492,-500.0,0.00049315,120]
[354777154,1740685833503,-500.0,0.00049315,120]
[354777155,1740685833512,-500.0,0.00049315,120]
[354777156,1740685833522,-500.0,0.00049315,120]
[354777157,1740685833532,-570.07,0.00049315,120]
[354777158,1740685833542,-500.0,0.00049315,120]
[354777159,1740685833551,-513.09,0.00049315,120]
[354777160,1740685833561,-500.0,0.00049315,120]
[354777161,1740685833570,-500.0,0.00049315,120]
[354777162,1740685833580,-500.0,0.00049315,120]
[354777163,1740685833590,-476.96548845,0.00049315,120]
[354777164,1740685833599,-500.0,0.00049315,120]
[354777165,1740685833609,-500.0,0.00049315,120]
[354777166,1740685833619,-500.0,0.00049315,120]
[354777167,1740685833629,-500.0,0.00049315,120]
[354777168,1740685833639,-500.0,0.00049315,120]
[354777169,1740685833649,-500.0,0.00049315,120]
[354777170,1740685833659,-500.0,0.00049315,120]
[354777171,1740685833669,-469.84,0.00049315,120]
[354777172,1740685833678,-528.98,0.00049315,120]
[354777173,1740685833688,-500.0,0.00049315,120]
[354777174,1740685833699,-500.0,0.00049315,120]
[354777175,1740685833708,-500.0,0.00049315,120]
[354777176,1740685833718,-500.0,0.00049315,120]
[354777177,1740685833728,-500.0,0.00049315,120]
[354777178,1740685833738,-151.0,0.00049315,120]
[354777179,1740685833748,-500.0,0.00049315,120]
[354777180,1740685833758,-500.0,0.00049315,120]
[354777181,1740685833768,-500.0,0.00049315,120]
[354777182,1740685833777,-151.0,0.00049315,120]
[354777183,1740685833788,-500.0,0.00049315,120]
[354777184,1740685833798,-500.0,0.00049315,120]
[354777185,1740685833808,-500.0,0.00049315,120]
[354777186,1740685833926,-500.0,0.00049315,120]
[354777187,1740685833936,-500.0,0.00049315,120]
[354777188,1740685833946,-500.0,0.00049315,120]
[354777189,1740685833956,-151.0,0.00049315,120]
[354777190,1740685833965,-546.87,0.00049315,120]
[354777191,1740685833975,-500.0,0.00049315,120]
[354777192,1740685833984,-544.26,0.00049315,120]
[354777193,1740685833994,-1136.94,0.00049315,120]
[354777194,1740685834004,-500.0,0.00049315,120]
[354777195,1740685834014,-289.5421941,0.00049315,120]
[354777196,1740685834023,-665.31,0.00049315,120]
[354777197,1740685834032,-760.41,0.00049315,120]
[354777198,1740685834042,-1016.95,0.00049315,120]
[354777199,1740685834051,-500.0,0.00049315,120]
[354777200,1740685834064,-852.59,0.00049315,120]
[354777201,1740685834074,-500.0,0.00049315,120]
[354777202,1740685834084,-500.0,0.00049315,120]
[354777203,1740685834094,-500.0,0.00049315,120]
[354777204,1740685834105,-500.0,0.00049315,120]
[354777205,1740685834115,-500.0,0.00049315,120]
[354777206,1740685834124,-500.0,0.00049315,120]
[354777207,1740685834134,-767.12,0.00049315,120]
[354777208,1740685834144,-500.0,0.00049315,120]
[354777209,1740685834154,-500.0,0.00049315,120]
[354777210,1740685834163,-500.0,0.00049315,120]
[354777211,1740685834172,-500.0,0.00049315,120]
[354777212,1740685834182,-500.0,0.00049315,120]
[354777213,1740685834192,-500.0,0.00049315,120]
[354777214,1740685834202,-500.0,0.00049315,120]
[354777215,1740685834211,-500.0,0.00049315,120]
[354777216,1740685834221,-500.0,0.00049315,120]
[354777217,1740685834230,-1135.57,0.00049315,120]
[354777218,1740685834240,-500.0,0.00049315,120]
[354777219,1740685834251,-511.6,0.00049315,120]
[354777220,1740685834262,-287.24,0.00049315,120]
[354777221,1740685834275,-151.0,0.00049315,120]
[354777222,1740685834285,-151.0,0.00049315,120]
[354777223,1740685834296,-500.0,0.00049315,120]
[354777224,1740685834307,-500.0,0.00049315,120]
[354777225,1740685834317,-500.0,0.00049315,120]
[354777226,1740685834327,-500.0,0.00049315,120]
[354777227,1740685834337,-500.0,0.00049315,2]
[354777228,1740685834349,-500.0,0.00049315,120]
[354777229,1740685834360,-300.0,0.00049315,120]
[354777230,1740685834370,-500.0,0.00049315,120]
[354777231,1740685834380,-500.0,0.00049315,120]
[354777232,1740685834390,-500.0,0.00049315,120]
[354777233,1740685834400,-766.33,0.00049315,120]
[354777234,1740685834411,-151.0,0.00049315,30]
[354777235,1740685834421,-500.0,0.00049315,120]
[354777236,1740685834432,-500.0,0.00049315,120]
[354777237,1740685834443,-500.0,0.00049315,120]
[354777238,1740685834453,-500.0,0.00049315,120]
[354777239,1740685834462,-500.0,0.00049315,120]
[354777240,1740685834472,-500.0,0.00049315,120]
[354777241,1740685834482,-528.66,0.00049315,120]
[354777242,1740685834491,-500.0,0.00049315,15]
[354777243,1740685834502,-500.0,0.00049315,120]
[354777244,1740685834512,-500.0,0.00049315,120]
[354777245,1740685834521,-500.0,0.00049315,120]
[354777246,1740685834531,-545.4,0.00049315,120]
[354777247,1740685834542,-151.0,0.00049315,2]
[354777248,1740685834551,-295.292618,0.00049315,2]
[354777249,1740685834560,-500.0,0.00049315,120]
[354777250,1740685834570,-500.0,0.00049315,120]
[354777251,1740685834579,-500.0,0.00049315,120]
[354777252,1740685834589,-500.0,0.00049315,120]
[354777253,1740685834599,-500.0254818,0.00049315,120]
[354777254,1740685834608,-500.0,0.00049315,120]
[354777255,1740685834618,-500.0,0.00049315,120]
[354777256,1740685834628,-500.0,0.00049315,120]
[354777257,1740685834637,-500.0,0.00049315,120]
[354777258,1740685834647,-634.2045562,0.00049315,120]
[354777259,1740685834656,-500.0,0.00049315,120]
[354777260,1740685834665,-201.27793882,0.00049315,120]
[354777261,1740685834675,-151.0,0.00049315,120]
[354777262,1740685834684,-151.0,0.00049315,120]
[354777263,1740685834694,-500.0,0.00049315,120]
[354777264,1740685834703,-500.0,0.00049315,120]
[354777265,1740685834712,-500.0,0.00049315,120]
[354777266,1740685834722,-500.0,0.00049315,120]
[354777267,1740685834731,-500.0,0.00049315,120]
[354777268,1740685834740,-447.39748133,0.00049315,120]
[354777269,1740685834751,-500.0,0.00049315,120]
[354777270,1740685834760,-500.0,0.00049315,120]
[354777271,1740685834769,-967.01,0.00049315,120]
[354777272,1740685834778,-331.02047409,0.00049315,120]
[354777273,1740685834788,-500.0,0.00049315,120]
[354777274,1740685834797,-500.0,0.00049315,120]
[354777275,1740685834807,-500.0,0.00049315,120]
[354777276,1740685834816,-500.0,0.00049315,120]
[354777277,1740685834825,-500.0,0.00049315,120]
[354777278,1740685834835,-500.0,0.00049315,120]
[354777279,1740685834844,-637.22,0.00049315,120]
[354777280,1740685834854,-500.0,0.00049315,120]
[354777281,1740685834863,-685.66,0.00049315,120]
[354777282,1740685834873,-500.0,0.00049315,120]
[354777283,1740685834883,-500.0,0.00049315,120]
[354777284,1740685834892,-151.0,0.00049315,120]
[354777285,1740685834902,-500.0,0.00049315,21]
[354777286,1740685834912,-500.0,0.00049315,120]
[354777287,1740685834922,-151.0,0.00049315,120]
[354777288,1740685834931,-676.91,0.00049315,120]
[354777289,1740685834941,-500.0,0.00049315,120]
[354777290,1740685834950,-3384.69,0.00049315,120]
[354777291,1740685834959,-500.0,0.00049315,120]
[354777292,1740685834967,-500.0,0.00049315,120]
[354777293,1740685834977,-500.0,0.00049315,120]
[354777294,1740685834986,-500.0,0.00049315,120]
[354777295,1740685834995,-500.0,0.00049315,120]
[354777296,1740685835006,-500.0,0.00049315,120]
[354777297,1740685835015,-1014.63,0.00049315,120]
[354777298,1740685835024,-556.55442762,0.00049315,120]
[354777299,1740685835034,-1068.99,0.00049315,120]
[354777300,1740685835043,-500.0,0.00049315,120]
[354777301,1740685835053,-500.0,0.00049315,120]
[354777302,1740685835062,-500.0,0.00049315,120]
[354777303,1740685835072,-590.43628873,0.00049315,120]
[354777304,1740685835081,-500.0,0.00049315,120]
[354777305,1740685835091,-500.0,0.00049315,120]
[354777306,1740685835100,-500.0,0.00049315,120]
[354777307,1740685835110,-500.0,0.00049315,120]
[354777308,1740685835119,-899.05,0.00049315,120]
[354777309,1740685835128,-10845.99,0.00049315,120]
[354777310,1740685835138,-500.0,0.00049315,120]
[354777311,1740685835148,-500.0,0.00049315,120]
[354777312,1740685835158,-500.0,0.00049315,120]
[354777313,1740685835167,-500.0,0.00049315,120]
[354777314,1740685835177,-500.0,0.00049315,120]
[354777315,1740685835187,-500.0,0.00049315,120]
[354777316,1740685835196,-604.6,0.00049315,120]
[354777317,1740685835206,-500.0,0.00049315,120]
[354777318,1740685835216,-500.0,0.00049315,120]
[354777319,1740685835225,-500.0,0.00049315,120]
[354777320,1740685835235,-500.0,0.00049315,120]
[354777321,1740685835245,-500.0,0.00049315,120]
[354777322,1740685835259,-1460.97,0.00049315,120]
[354777323,1740685835269,-500.0,0.00049315,120]
[354777324,1740685835278,-514.22389054,0.00049315,120]
[354777325,1740685835288,-500.0,0.00049315,120]
[354777326,1740685835298,-906.67,0.00049315,120]
[354777327,1740685835307,-500.0,0.00049315,120]
[354777328,1740685835316,-500.0,0.00049315,120]
[354777329,1740685835326,-200.0,0.00049315,7]
[354777330,1740685835336,-500.0,0.00049315,120]
[354777331,1740685835346,-503.73822936,0.00049315,120]
[354777332,1740685835356,-874.77,0.00049315,120]
[354777333,1740685835365,-500.0,0.00049315,120]
[354777334,1740685835374,-500.0,0.00049315,120]
[354777335,1740685835384,-376.99731489,0.00049315,120]
[354777336,1740685835393,-500.0,0.00049315,120]
[354777337,1740685835403,-500.0,0.00049315,120]
[354777338,1740685835412,-9146.17,0.00049315,6]
[354777339,1740685835421,-500.0,0.00049315,120]
[354777340,1740685835430,-500.0,0.00049315,120]
[354777341,1740685835439,-500.0,0.00049315,120]
[354777342,1740685835448,-500.0,0.00049315,120]
[354777343,1740685835458,-500.0,0.00049315,120]
[354777344,1740685835467,-551.03,0.00049315,120]
[354777345,1740685835476,-151.0,0.00049315,120]
[354777346,1740685835485,-151.0,0.00049315,120]
[354777347,1740685835494,-2452.99,0.00049315,120]
[354777348,1740685835505,-500.0,0.00049315,120]
[354777349,1740685835514,-500.0,0.00049315,120]
[354777350,1740685835524,-500.0,0.00049315,120]
[354777351,1740685835533,-875.16,0.00049315,120]
[354777352,1740685835543,-523.93720035,0.00049315,120]
[354777353,1740685835552,-166.417461,0.00049315,120]
[354777354,1740685835562,-500.0,0.00049315,120]
[354777355,1740685835572,-2346.79,0.00049315,120]
[354777356,1740685835582,-500.0,0.00049315,120]
[354777357,1740685835591,-713.69,0.00049315,120]
[354777358,1740685835600,-500.0,0.00049315,120]
[354777359,1740685835610,-500.0,0.00049315,120]
[354777360,1740685835619,-2847.46,0.00049315,120]
[354777361,1740685835628,-500.0,0.00049315,120]
[354777362,1740685835637,-151.0,0.00049315,120]
[354777363,1740685835648,-151.0,0.00049315,120]
[354777364,1740685835657,-500.0,0.00049315,120]
[354777365,1740685835666,-500.0,0.00049315,120]
[354777366,1740685835675,-1019.41,0.00049315,120]
[354777367,1740685835684,-500.0,0.00049315,120]
[354777368,1740685835694,-500.0,0.00049315,120]
[354777369,1740685835703,-500.0,0.00049315,120]
[354777370,1740685835712,-500.0,0.00049315,120]
[354777371,1740685835721,-6222.02,0.00049315,120]
[354777372,1740685835730,-500.0,0.00049315,120]
[354777373,1740685835739,-1434.71355639,0.00049315,120]
[354777374,1740685835758,-4251.73644361,0.00049315,120]
[354777375,1740685835767,-500.0,0.00049315,120]
[354777376,1740685835778,-500.0,0.00049315,120]
[354777377,1740685835788,-500.0,0.00049315,120]
[354777378,1740685835798,-382.38501481,0.00049315,120]
[354777379,1740685836015,-168.41298368,0.00049315,120]
[354777380,1740685836025,-438.86817904,0.00049315,120]
[354777381,1740685836035,-535.54,0.00049315,120]
[354777382,1740685836044,-524.55,0.00049315,120]
[354777383,1740685836053,-6530.44,0.00049315,120]
[354777384,1740685836063,-500.0,0.00049315,120]
[354777385,1740685836073,-1263.78,0.00049315,120]
[354777386,1740685836082,-1699.71,0.00049315,120]
[354777387,1740685836091,-500.0,0.00049315,120]
[354777388,1740685836100,-500.0,0.00049315,120]
[354777389,1740685836110,-151.0,0.00049315,120]
[354777390,1740685836119,-500.0,0.00049315,120]
[354777391,1740685836128,-500.0,0.00049315,120]
[354777392,1740685836138,-500.0,0.00049315,120]
[354777393,1740685836147,-151.0,0.00049315,120]
[354777394,1740685836156,-500.0,0.00049315,120]
[354777395,1740685836165,-1000.0,0.00049315,2]
[354777396,1740685836174,-500.0,0.00049315,120]
[354777397,1740685836183,-3322.36,0.00049315,120]
[354777398,1740685836193,-249.51318586,0.00049315,120]
[354777433,1740685837835,-3142.169976,0.00038404,2]
[354777434,1740685837845,-289.84681414,0.00049315,120]
[354777435,1740685837855,-500.0,0.00049315,120]
[354777436,1740685837864,-500.0,0.00049315,120]
[354777437,1740685837873,-256.86745734,0.00049315,120]
[354777438,1740685837882,-606.98,0.00049315,120]
[354777439,1740685837891,-151.0,0.00049315,120]
[354777440,1740685837901,-151.0,0.00049315,120]
[354777441,1740685837910,-500.0,0.00049315,120]
[354777442,1740685837919,-2063.97,0.00049315,120]
[354777443,1740685837928,-500.0,0.00049315,120]
[354777444,1740685837937,-151.0,0.00049315,120]
[354777445,1740685837946,-151.0,0.00049315,120]
[354777446,1740685837955,-500.0,0.00049315,120]
[354777447,1740685837964,-585.15,0.00049315,120]
[354777448,1740685837980,-151.0,0.00049315,120]
[354777449,1740685837995,-500.0,0.00049315,120]
[354777450,1740685838009,-151.0,0.00049315,120]
[354777451,1740685838020,-1406.16,0.00049315,120]
[354777452,1740685838033,-160.6,0.00049315,120]
[354777453,1740685838046,-500.0,0.00049315,120]
[354777454,1740685838060,-48927.94,0.00049315,7]
[354777455,1740685838073,-500.0,0.00049315,120]
[354777456,1740685838086,-500.0,0.00049315,120]
[354777457,1740685838099,-500.0,0.00049315,120]
[354777458,1740685838114,-566.66,0.00049315,120]
[354777459,1740685838127,-500.0,0.00049315,120]
[354777460,1740685838139,-500.0,0.00049315,120]
[354777461,1740685838151,-500.0,0.00049315,120]
[354777462,1740685838164,-1542.96,0.00049315,120]
[354777463,1740685838179,-500.0,0.00049315,120]
[354777464,1740685838191,-585.18702144,0.00049315,120]
[354777465,1740685838203,-500.0,0.00049315,120]
[354777466,1740685838214,-500.0,0.00049315,120]
[354777467,1740685838227,-5695.27,0.00049315,120]
[354777468,1740685838239,-500.0,0.00049315,120]
[354777469,1740685838253,-500.0,0.00049315,120]
[354777470,1740685838267,-1820.73,0.00049315,120]
[354777471,1740685838281,-500.0,0.00049315,30]
[354777472,1740685838295,-500.0,0.00049315,120]
[354777473,1740685838310,-590.56376517,0.00049315,120]
[354777474,1740685838324,-500.0,0.00049315,120]
[354777475,1740685838335,-500.0,0.00049315,120]
[354777476,1740685838346,-500.0,0.00049315,120]
[354777477,1740685838357,-553.75,0.00049315,120]
[354777478,1740685838370,-895.44,0.00049315,120]
[354777479,1740685838384,-500.0,0.00049315,120]
[354777480,1740685838397,-500.0,0.00049315,120]
[354777481,1740685838408,-500.0,0.00049315,2]
[354777482,1740685838419,-500.0,0.00049315,120]
[354777483,1740685838430,-1000.0,0.00049315,60]
[354777484,1740685838443,-1088.554519,0.00049315,120]
[354777485,1740685838455,-1088.554519,0.00049315,120]
[354777486,1740685838465,-905.47503387,0.00049315,120]
[354777487,1740685838481,-183.07948513,0.00049315,120]
[354777488,1740685838492,-1088.554519,0.00049315,120]
[354777489,1740685838503,-385.69618198,0.00049373,10]
[354777490,1740685838514,-500.0,0.00049373,7]
[354777491,1740685838526,-500.71272102,0.00049373,2]
[354777492,1740685838538,-500.0,0.00049373,10]
[354777493,1740685838548,-156.78223772,0.00049373,10]
[354777494,1740685838559,-629.35521693,0.00049373,10]
[354777495,1740685838571,-151.19249025,0.00049373,10]
[354777496,1740685838582,-500.0,0.00049373,10]
[354777497,1740685838594,-500.79517893,0.00049373,10]
[354777498,1740685838605,-500.0,0.00049373,7]
[354777499,1740685838617,-386.29079817,0.00049373,10]
[354777500,1740685838628,-277.3161471,0.00049373,10]
[354777501,1740685838640,-500.0,0.00049373,10]
[354777502,1740685838651,-155.19131688,0.00049373,10]
[354777503,1740685838662,-151.0,0.00049373,120]
[354777504,1740685838673,-151.0,0.00049373,120]
[354777505,1740685838684,-5436.37,0.000494,30]
[354777506,1740685838696,-179.60486929,0.00049408,40]
[354777507,1740685838707,-49245.92795339,0.00049473,120]
[354777508,1740685838718,-151.0,0.00049473,120]
[354777509,1740685838729,-151.0,0.00049473,120]
[354777510,1740685838740,-151.0,0.00049473,120]
[354777511,1740685838751,-500.0,0.00049573,10]
[354777512,1740685838765,-500.0,0.00049573,10]
[354777513,1740685838776,-604.41172363,0.00049573,10]
[354777514,1740685838788,-285.65304894,0.00049573,10]
[354777515,1740685838800,-500.0,0.00049573,10]
[354777516,1740685838811,-500.0,0.00049573,10]
[354777517,1740685838822,-151.0,0.00049573,120]
[354777518,1740685838833,-1088.554519,0.00049573,120]
[354777519,1740685838845,-1088.554519,0.00049573,120]
[354777520,1740685838856,-151.0,0.00049573,120]
[354777521,1740685838866,-500.0,0.00049588,120]
[354777522,1740685838878,-500.0,0.00049588,120]
[354777523,1740685838889,-500.0,0.00049588,31]
[354777524,1740685838900,-178.95363915,0.00049588,120]
[354777525,1740685838912,-444.89456206,0.00049588,31]
[354777526,1740685838923,-290.93469321,0.00049588,120]
[354777527,1740685838934,-312.47744499,0.00049589,120]
[354777528,1740685838945,-500.0,0.00049589,120]
[354777529,1740685838955,-500.0,0.00049589,120]
[354777530,1740685838967,-500.0,0.00049589,120]
[354777531,1740685838978,-500.0,0.00049589,120]
[354777532,1740685838987,-500.0,0.00049589,120]
[354777533,1740685838996,-500.0,0.00049589,120]
[354777534,1740685839006,-500.0,0.00049589,120]
[354777535,1740685839016,-500.0,0.00049589,120]
[354777536,1740685839025,-500.0,0.00049589,120]
[354777537,1740685839035,-500.0,0.00049589,120]
[354777538,1740685839044,-500.0,0.00049589,120]
[354777539,1740685839053,-500.0,0.00049589,120]
[354777540,1740685839063,-500.0,0.00049589,120]
[354777541,1740685839072,-500.0,0.00049589,120]
[354777542,1740685839082,-528.98,0.00049589,120]
[354777543,1740685839091,-500.0,0.00049589,120]
[354777544,1740685839100,-500.0,0.00049589,120]
[354777545,1740685839110,-500.0,0.00049589,120]
[354777546,1740685839120,-500.0,0.00049589,120]
[354777547,1740685839293,-151.0,0.00049589,120]
[354777548,1740685839312,-500.0,0.00049589,120]
[354777549,1740685839322,-500.0,0.00049589,120]
[354777550,1740685839333,-500.0,0.00049589,120]
[354777551,1740685839343,-500.0,0.00049589,120]
[354777552,1740685839353,-500.0,0.00049589,120]
[354777553,1740685839362,-500.0,0.00049589,120]
[354777554,1740685839371,-500.0,0.00049589,120]
[354777555,1740685839381,-151.0,0.00049589,120]
[354777556,1740685839391,-546.87,0.00049589,120]
[354777557,1740685839400,-500.0,0.00049589,120]
[354777559,1740685839409,-544.26,0.00049589,120]
[354777560,1740685839419,-1136.94,0.00049589,120]
[354777561,1740685839428,-500.0,0.00049589,120]
[354777562,1740685839437,-665.31,0.00049589,120]
[354777563,1740685839446,-760.41,0.00049589,120]
[354777564,1740685839455,-1016.95,0.00049589,120]
[354777565,1740685839465,-500.0,0.00049589,120]
[354777566,1740685839474,-852.59,0.00049589,120]
[354777567,1740685839483,-500.0,0.00049589,120]
[354777568,1740685839492,-500.0,0.00049589,120]
[354777569,1740685839501,-500.0,0.00049589,120]
[354777572,1740685839512,-500.0,0.00049589,120]
[354777574,1740685839522,-500.0,0.00049589,120]
[354777575,1740685839531,-500.0,0.00049589,120]
[354777576,1740685839541,-767.12,0.00049589,120]
[354777577,1740685839551,-500.0,0.00049589,120]
[354777578,1740685839560,-500.0,0.00049589,120]
[354777579,1740685839569,-500.0,0.00049589,120]
[354777580,1740685839580,-500.0,0.00049589,120]
[354777581,1740685839589,-500.0,0.00049589,120]
[354777582,1740685839598,-500.0,0.00049589,120]
[354777583,1740685839608,-500.0,0.00049589,120]
[354777584,1740685839618,-500.0,0.00049589,120]
[354777585,1740685839629,-500.0,0.00049589,120]
[354777586,1740685839638,-1135.57,0.00049589,120]